Workbook

Sheet Solver
L2: Parâmetros
L3: A0
L4: A1
L5: B1
L6: W0
L7: Erro
B10: t | C10: f(t) | L10: Fajus(t)
A11: 1 | B11: 0 | C11: 2.2
A12: 2 | B12: 0.15 | C12: 1.595
A13: 3 | B13: 0.3 | C13: 1.031
A14: 4 | B14: 0.45 | C14: 0.722
A15: 5 | B15: 0.6 | C15: 0.786
A16: 6 | B16: 0.75 | C16: 1.2
A17: 7 | B17: 0.9 | C17: 1.805
A18: 8 | B18: 1.05 | C18: 2.369
A19: 9 | B19: 1.2 | C19: 2.678
A20: 10 | B20: 1.35 | C20: 2.614
B21: Med | C21: =+AVERAGE(C11:C20) -> 1.7
B22: Max | C22: =+MAX(C11:C20) -> 2.678
B23: Min | C23: =+MIN(C11:C20) -> 0.722

Sheet MMQ
C5: N | D5: 10
C6: T | D6: =(D5)*0.15 -> 1.5
C7: W | D7: =2*3.141/D6 -> 4.188
B10: t | C10: f(t) | F10: fajust(t) | H10: fajust(t)
A11: 1 | B11: 0 | C11: 2.2
A12: 2 | B12: 0.15 | C12: 1.595
A13: 3 | B13: 0.3 | C13: 1.031
A14: 4 | B14: 0.45 | C14: 0.722
A15: 5 | B15: 0.6 | C15: 0.786
A16: 6 | B16: 0.75 | C16: 1.2
A17: 7 | B17: 0.9 | C17: 1.805
A18: 8 | B18: 1.05 | C18: 2.369
A19: 9 | B19: 1.2 | C19: 2.678
A20: 10 | B20: 1.35 | C20: 2.614
A21: S | C21: =SUM(C11:C20) -> 17

Sheet Fourrier
F7: 1 | J7: 3 | N7: 5 | R7: 7
A8: T | B8: 4 | D8: ao | E8: =SUM(E11:E51)/T -> 0.025 | F8: a | G8: =2*SUM(G11:G51)/T -> 1.320620474 | H8: b | I8: =2*SUM(I11:I51)/T -> 1.523900364e-15 | J8: a | K8: =2*SUM(K11:K51)/T -> -0.366529977 | L8: b | M8: =2*SUM(M11:M51)/T -> -1.238234775e-15 | N8: a | O8: =2*SUM(O11:O51)/T -> 0.2914213562 | P8: b | Q8: =2*SUM(Q11:Q51)/T -> 1.605562471e-15 | R8: a | S8: =2*SUM(S11:S51)/T -> -0.1131851687 | T8: b | U8: =2*SUM(U11:U51)/T -> -9.976719971e-16 | W8: =+F7 -> 1 | X8: =+J7 -> 3 | Y8: =+N7 -> 5 | Z8: =+R7 -> 7
A9: dt | B9: 0.1
A10: t | B10: f(t)
A11: =-T/2 -> -2 | B11: =IF(AND(A11>-T/2,A11<=-T/4),-1,IF(AND(A11>-T/4,A11<=T/4),1,-1)) -> -1 | E11: =+B11*dd -> -0.1 | G11: =+$B11*COS(2*PI()*$F$7/T*$A11)*dd -> 0.1 | I11: =+$B11*SIN(2*PI()*$F$7/T*$A11)*dd -> 1.225148455e-17 | K11: =+$B11*COS(2*PI()*J$7/T*$A11)*dd -> 0.1 | M11: =+$B11*SIN(2*PI()*J$7/T*$A11)*dd -> 3.675445365e-17 | O11: =+$B11*COS(2*PI()*N$7/T*$A11)*dd -> 0.1 | Q11: =+$B11*SIN(2*PI()*N$7/T*$A11)*dd -> 6.125742275e-17 | S11: =+$B11*COS(2*PI()*R$7/T*$A11)*dd -> 0.1 | U11: =+$B11*SIN(2*PI()*R$7/T*$A11)*dd -> 8.576039184e-17
A12: =+A11+dd -> -1.9 | B12: -1 | E12: =+B12*dd -> -0.1 | G12: 0.09876883406 | I12: 0.0156434465 | K12: =+$B12*COS(2*PI()*J$7/T*$A12)*dd -> 0.08910065242 | M12: 0.04539904997 | O12: 0.07071067812 | Q12: 0.07071067812 | S12: 0.04539904997 | U12: 0.08910065242
A13: -1.8 | B13: -1 | E13: -0.1 | G13: 0.09510565163 | I13: 0.03090169944 | K13: 0.05877852523 | M13: 0.08090169944 | O13: -2.327673644e-16 | Q13: 0.1 | S13: -0.05877852523 | U13: 0.08090169944
A14: -1.7 | B14: -1 | E14: -0.1 | G14: 0.08910065242 | I14: 0.04539904997 | K14: 0.0156434465 | M14: 0.09876883406 | O14: -0.07071067812 | Q14: 0.07071067812 | S14: -0.09876883406 | U14: -0.0156434465
A15: -1.6 | B15: -1 | E15: -0.1 | G15: 0.08090169944 | I15: 0.05877852523 | K15: -0.03090169944 | M15: 0.09510565163 | O15: -0.1 | Q15: -4.042773061e-16 | S15: -0.03090169944 | U15: -0.09510565163
A16: -1.5 | B16: -1 | E16: -0.1 | G16: 0.07071067812 | I16: 0.07071067812 | K16: -0.07071067812 | M16: 0.07071067812 | O16: -0.07071067812 | Q16: -0.07071067812 | S16: 0.07071067812 | U16: -0.07071067812
A17: -1.4 | B17: -1 | E17: -0.1 | G17: 0.05877852523 | I17: 0.08090169944 | K17: -0.09510565163 | M17: 0.03090169944 | O17: 3.981515638e-16 | Q17: -0.1 | S17: 0.09510565163 | U17: 0.03090169944
A18: -1.3 | B18: -1 | E18: -0.1 | G18: 0.04539904997 | I18: 0.08910065242 | K18: -0.09876883406 | M18: -0.0156434465 | O18: 0.07071067812 | Q18: -0.07071067812 | S18: 0.0156434465 | U18: 0.09876883406
A19: -1.2 | B19: -1 | E19: -0.1 | G19: 0.03090169944 | I19: 0.09510565163 | K19: -0.08090169944 | M19: -0.05877852523 | O19: 0.1 | Q19: 5.696615055e-16 | S19: -0.08090169944 | U19: 0.05877852523
A20: -1.1 | B20: -1 | E20: -0.1 | G20: 0.0156434465 | I20: 0.09876883406 | K20: -0.04539904997 | M20: -0.08910065242 | O20: 0.07071067812 | Q20: 0.07071067812 | S20: -0.08910065242 | U20: -0.04539904997
A21: -1 | B21: 1 | E21: 0.1 | G21: 1.171480447e-16 | I21: -0.1 | K21: -3.736485947e-16 | M21: 0.1 | O21: 6.523536052e-16 | Q21: -0.1 | S21: -9.310586156e-16 | U21: 0.1
A22: -0.9 | B22: 1 | E22: 0.1 | G22: 0.0156434465 | I22: -0.09876883406 | K22: -0.04539904997 | M22: 0.08910065242 | O22: 0.07071067812 | Q22: -0.07071067812 | S22: -0.08910065242 | U22: 0.04539904997
A23: -0.8 | B23: 1 | E23: 0.1 | G23: 0.03090169944 | I23: -0.09510565163 | K23: -0.08090169944 | M23: 0.05877852523 | O23: 0.1 | Q23: 5.574100209e-16 | S23: -0.08090169944 | U23: -0.05877852523
A24: -0.7 | B24: 1 | E24: 0.1 | G24: 0.04539904997 | I24: -0.08910065242 | K24: -0.09876883406 | M24: 0.0156434465 | O24: 0.07071067812 | Q24: 0.07071067812 | S24: 0.0156434465 | U24: -0.09876883406
A25: -0.6 | B25: 1 | E25: 0.1 | G25: 0.05877852523 | I25: -0.08090169944 | K25: -0.09510565163 | M25: -0.03090169944 | O25: -5.512842786e-16 | Q25: 0.1 | S25: 0.09510565163 | U25: -0.03090169944
A26: -0.5 | B26: 1 | E26: 0.1 | G26: 0.07071067812 | I26: -0.07071067812 | K26: -0.07071067812 | M26: -0.07071067812 | O26: -0.07071067812 | Q26: 0.07071067812 | S26: 0.07071067812 | U26: 0.07071067812
A27: -0.4 | B27: 1 | E27: 0.1 | G27: 0.08090169944 | I27: -0.05877852523 | K27: -0.03090169944 | M27: -0.09510565163 | O27: -0.1 | Q27: -5.007496154e-16 | S27: -0.03090169944 | U27: 0.09510565163
A28: -0.3 | B28: 1 | E28: 0.1 | G28: 0.08910065242 | I28: -0.04539904997 | K28: 0.0156434465 | M28: -0.09876883406 | O28: -0.07071067812 | Q28: -0.07071067812 | S28: -0.09876883406 | U28: 0.0156434465
A29: -0.2 | B29: 1 | E29: 0.1 | G29: 0.09510565163 | I29: -0.03090169944 | K29: 0.05877852523 | M29: -0.08090169944 | O29: 4.946238731e-16 | Q29: -0.1 | S29: -0.05877852523 | U29: -0.08090169944
A30: -0.1 | B30: 1 | E30: 0.1 | G30: 0.09876883406 | I30: -0.0156434465 | K30: 0.08910065242 | M30: -0.04539904997 | O30: 0.07071067812 | Q30: -0.07071067812 | S30: 0.04539904997 | U30: -0.08910065242
A31: 6.383782392e-16 | B31: 1 | E31: 0.1 | G31: 0.1 | I31: 1.002762193e-16 | K31: 0.1 | M31: 3.00828658e-16 | O31: 0.1 | Q31: 5.013810966e-16 | S31: 0.1 | U31: 7.019335352e-16
A32: 0.1 | B32: 1 | E32: 0.1 | G32: 0.09876883406 | I32: 0.0156434465 | K32: 0.08910065242 | M32: 0.04539904997 | O32: 0.07071067812 | Q32: 0.07071067812 | S32: 0.04539904997 | U32: 0.08910065242
A33: 0.2 | B33: 1 | E33: 0.1 | G33: 0.09510565163 | I33: 0.03090169944 | K33: 0.05877852523 | M33: 0.08090169944 | O33: -5.045768491e-16 | Q33: 0.1 | S33: -0.05877852523 | U33: 0.08090169944
A34: 0.3 | B34: 1 | E34: 0.1 | G34: 0.08910065242 | I34: 0.04539904997 | K34: 0.0156434465 | M34: 0.09876883406 | O34: -0.07071067812 | Q34: 0.07071067812 | S34: -0.09876883406 | U34: -0.0156434465
A35: 0.4 | B35: 1 | E35: 0.1 | G35: 0.08090169944 | I35: 0.05877852523 | K35: -0.03090169944 | M35: 0.09510565163 | O35: -0.1 | Q35: -5.206555673e-16 | S35: -0.03090169944 | U35: -0.09510565163
A36: 0.5 | B36: 1 | E36: 0.1 | G36: 0.07071067812 | I36: 0.07071067812 | K36: -0.07071067812 | M36: 0.07071067812 | O36: -0.07071067812 | Q36: -0.07071067812 | S36: 0.07071067812 | U36: -0.07071067812
A37: 0.6 | B37: 1 | E37: 0.1 | G37: 0.05877852523 | I37: 0.08090169944 | K37: -0.09510565163 | M37: 0.03090169944 | O37: 5.14529825e-16 | Q37: -0.1 | S37: 0.09510565163 | U37: 0.03090169944
A38: 0.7 | B38: 1 | E38: 0.1 | G38: 0.04539904997 | I38: 0.08910065242 | K38: -0.09876883406 | M38: -0.0156434465 | O38: 0.07071067812 | Q38: -0.07071067812 | S38: 0.0156434465 | U38: 0.09876883406
A39: 0.8 | B39: 1 | E39: 0.1 | G39: 0.03090169944 | I39: 0.09510565163 | K39: -0.08090169944 | M39: -0.05877852523 | O39: 0.1 | Q39: 4.195862408e-16 | S39: -0.08090169944 | U39: 0.05877852523
A40: 0.9 | B40: 1 | E40: 0.1 | G40: 0.0156434465 | I40: 0.09876883406 | K40: -0.04539904997 | M40: -0.08910065242 | O40: 0.07071067812 | Q40: 0.07071067812 | S40: -0.08910065242 | U40: -0.04539904997
A41: 1 | B41: 1 | E41: 0.1 | G41: -1.048965602e-16 | I41: 0.1 | K41: 3.368941411e-16 | M41: -0.1 | O41: -5.022783404e-16 | Q41: 0.1 | S41: 6.676625398e-16 | U41: -0.1
A42: 1.1 | B42: -1 | E42: -0.1 | G42: 0.0156434465 | I42: -0.09876883406 | K42: -0.04539904997 | M42: 0.08910065242 | O42: 0.07071067812 | Q42: -0.07071067812 | S42: -0.08910065242 | U42: 0.04539904997
A43: 1.2 | B43: -1 | E43: -0.1 | G43: 0.03090169944 | I43: -0.09510565163 | K43: -0.08090169944 | M43: 0.05877852523 | O43: 0.1 | Q43: 6.737882821e-16 | S43: -0.08090169944 | U43: -0.05877852523
A44: 1.3 | B44: -1 | E44: -0.1 | G44: 0.04539904997 | I44: -0.08910065242 | K44: -0.09876883406 | M44: 0.0156434465 | O44: 0.07071067812 | Q44: 0.07071067812 | S44: 0.0156434465 | U44: -0.09876883406
A45: 1.4 | B45: -1 | E45: -0.1 | G45: 0.05877852523 | I45: -0.08090169944 | K45: -0.09510565163 | M45: -0.03090169944 | O45: -8.452982238e-16 | Q45: 0.1 | S45: 0.09510565163 | U45: -0.03090169944
A46: 1.5 | B46: -1 | E46: -0.1 | G46: 0.07071067812 | I46: -0.07071067812 | K46: -0.07071067812 | M46: -0.07071067812 | O46: -0.07071067812 | Q46: 0.07071067812 | S46: 0.07071067812 | U46: 0.07071067812
A47: 1.6 | B47: -1 | E47: -0.1 | G47: 0.08090169944 | I47: -0.05877852523 | K47: -0.03090169944 | M47: -0.09510565163 | O47: -0.1 | Q47: -8.391724815e-16 | S47: -0.03090169944 | U47: 0.09510565163
A48: 1.7 | B48: -1 | E48: -0.1 | G48: 0.08910065242 | I48: -0.04539904997 | K48: 0.0156434465 | M48: -0.09876883406 | O48: -0.07071067812 | Q48: -0.07071067812 | S48: -0.09876883406 | U48: 0.0156434465
A49: 1.8 | B49: -1 | E49: -0.1 | G49: 0.09510565163 | I49: -0.03090169944 | K49: 0.05877852523 | M49: -0.08090169944 | O49: 1.010682423e-15 | Q49: -0.1 | S49: -0.05877852523 | U49: -0.08090169944
A50: 1.9 | B50: -1 | E50: -0.1 | G50: 0.09876883406 | I50: -0.0156434465 | K50: 0.08910065242 | M50: -0.04539904997 | O50: 0.07071067812 | Q50: -0.07071067812 | S50: 0.04539904997 | U50: -0.08910065242
A51: 2 | B51: -1 | E51: -0.1 | G51: 0.1 | I51: 2.097931204e-16 | K51: 0.1 | M51: 6.737882821e-16 | O51: 0.1 | Q51: 1.004556681e-15 | S51: 0.1 | U51: 1.33532508e-15

Sheet DFT
B3: ampl | C3: 20
B4: f | C4: 12.5
B5: dt1 | C5: 0.01
E6: =+MAX(E8:E259) -> 0
B7: t | C7: f(t) | D7: Freq | E7: Ampl r
A8: 0 | B8: 0 | C8: =ampl*COS(2*PI()*f*B8)+ampl/3*COS(2*PI()*2*f*B8) -> 26.66666667
A9: 1 | B9: =+B8+dt1_ -> 0.01 | C9: 14.14213562
A10: 2 | B10: 0.02 | C10: -6.666666667
A11: 3 | B11: 0.03 | C11: -14.14213562
A12: 4 | B12: 0.04 | C12: -13.33333333
A13: 5 | B13: 0.05 | C13: -14.14213562
A14: 6 | B14: 0.06 | C14: -6.666666667
A15: 7 | B15: 0.07 | C15: 14.14213562
A16: 8 | B16: 0.08 | C16: 26.66666667
A17: 9 | B17: 0.09 | C17: 14.14213562
A18: 10 | B18: 0.1 | C18: -6.666666667
A19: 11 | B19: 0.11 | C19: -14.14213562
A20: 12 | B20: 0.12 | C20: -13.33333333
A21: 13 | B21: 0.13 | C21: -14.14213562
A22: 14 | B22: 0.14 | C22: -6.666666667
A23: 15 | B23: 0.15 | C23: 14.14213562
A24: 16 | B24: 0.16 | C24: 26.66666667
A25: 17 | B25: 0.17 | C25: 14.14213562
A26: 18 | B26: 0.18 | C26: -6.666666667
A27: 19 | B27: 0.19 | C27: -14.14213562
A28: 20 | B28: 0.2 | C28: -13.33333333
A29: 21 | B29: 0.21 | C29: -14.14213562
A30: 22 | B30: 0.22 | C30: -6.666666667
A31: 23 | B31: 0.23 | C31: 14.14213562
A32: 24 | B32: 0.24 | C32: 26.66666667
A33: 25 | B33: 0.25 | C33: 14.14213562
A34: 26 | B34: 0.26 | C34: -6.666666667
A35: 27 | B35: 0.27 | C35: -14.14213562
A36: 28 | B36: 0.28 | C36: -13.33333333
A37: 29 | B37: 0.29 | C37: -14.14213562
A38: 30 | B38: 0.3 | C38: -6.666666667
A39: 31 | B39: 0.31 | C39: 14.14213562
A40: 32 | B40: 0.32 | C40: 26.66666667
A41: 33 | B41: 0.33 | C41: 14.14213562
A42: 34 | B42: 0.34 | C42: -6.666666667
A43: 35 | B43: 0.35 | C43: -14.14213562
A44: 36 | B44: 0.36 | C44: -13.33333333
A45: 37 | B45: 0.37 | C45: -14.14213562
A46: 38 | B46: 0.38 | C46: -6.666666667
A47: 39 | B47: 0.39 | C47: 14.14213562
A48: 40 | B48: 0.4 | C48: 26.66666667
A49: 41 | B49: 0.41 | C49: 14.14213562
A50: 42 | B50: 0.42 | C50: -6.666666667
A51: 43 | B51: 0.43 | C51: -14.14213562
A52: 44 | B52: 0.44 | C52: -13.33333333
A53: 45 | B53: 0.45 | C53: -14.14213562
A54: 46 | B54: 0.46 | C54: -6.666666667
A55: 47 | B55: 0.47 | C55: 14.14213562
A56: 48 | B56: 0.48 | C56: 26.66666667
A57: 49 | B57: 0.49 | C57: 14.14213562
A58: 50 | B58: 0.5 | C58: -6.666666667
A59: 51 | B59: 0.51 | C59: -14.14213562
A60: 52 | B60: 0.52 | C60: -13.33333333
A61: 53 | B61: 0.53 | C61: -14.14213562
A62: 54 | B62: 0.54 | C62: -6.666666667
A63: 55 | B63: 0.55 | C63: 14.14213562
A64: 56 | B64: 0.56 | C64: 26.66666667
A65: 57 | B65: 0.57 | C65: 14.14213562
A66: 58 | B66: 0.58 | C66: -6.666666667
A67: 59 | B67: 0.59 | C67: -14.14213562
A68: 60 | B68: 0.6 | C68: -13.33333333
A69: 61 | B69: 0.61 | C69: -14.14213562
A70: 62 | B70: 0.62 | C70: -6.666666667
A71: 63 | B71: 0.63 | C71: 14.14213562
A72: 64 | B72: 0.64 | C72: =ampl*COS(2*PI()*f*B72)+ampl/3*COS(2*PI()*2*f*B72) -> 26.66666667
A73: 65 | B73: =+B72+dt1_ -> 0.65 | C73: 14.14213562
A74: 66 | B74: 0.66 | C74: -6.666666667
A75: 67 | B75: 0.67 | C75: -14.14213562
A76: 68 | B76: 0.68 | C76: -13.33333333
A77: 69 | B77: 0.69 | C77: -14.14213562
A78: 70 | B78: 0.7 | C78: -6.666666667
A79: 71 | B79: 0.71 | C79: 14.14213562
A80: 72 | B80: 0.72 | C80: 26.66666667
A81: 73 | B81: 0.73 | C81: 14.14213562
A82: 74 | B82: 0.74 | C82: -6.666666667
A83: 75 | B83: 0.75 | C83: -14.14213562
A84: 76 | B84: 0.76 | C84: -13.33333333
A85: 77 | B85: 0.77 | C85: -14.14213562
A86: 78 | B86: 0.78 | C86: -6.666666667
A87: 79 | B87: 0.79 | C87: 14.14213562
A88: 80 | B88: 0.8 | C88: 26.66666667
A89: 81 | B89: 0.81 | C89: 14.14213562
A90: 82 | B90: 0.82 | C90: -6.666666667
A91: 83 | B91: 0.83 | C91: -14.14213562
A92: 84 | B92: 0.84 | C92: -13.33333333
A93: 85 | B93: 0.85 | C93: -14.14213562
A94: 86 | B94: 0.86 | C94: -6.666666667
A95: 87 | B95: 0.87 | C95: 14.14213562
A96: 88 | B96: 0.88 | C96: 26.66666667
A97: 89 | B97: 0.89 | C97: 14.14213562
A98: 90 | B98: 0.9 | C98: -6.666666667
A99: 91 | B99: 0.91 | C99: -14.14213562
A100: 92 | B100: 0.92 | C100: -13.33333333
A101: 93 | B101: 0.93 | C101: -14.14213562
A102: 94 | B102: 0.94 | C102: -6.666666667
A103: 95 | B103: 0.95 | C103: 14.14213562
A104: 96 | B104: 0.96 | C104: 26.66666667
A105: 97 | B105: 0.97 | C105: 14.14213562
A106: 98 | B106: 0.98 | C106: -6.666666667
A107: 99 | B107: 0.99 | C107: -14.14213562
A108: 100 | B108: 1 | C108: -13.33333333
A109: 101 | B109: 1.01 | C109: -14.14213562
A110: 102 | B110: 1.02 | C110: -6.666666667
A111: 103 | B111: 1.03 | C111: 14.14213562
A112: 104 | B112: 1.04 | C112: 26.66666667
A113: 105 | B113: 1.05 | C113: 14.14213562
A114: 106 | B114: 1.06 | C114: -6.666666667
A115: 107 | B115: 1.07 | C115: -14.14213562
A116: 108 | B116: 1.08 | C116: -13.33333333
A117: 109 | B117: 1.09 | C117: -14.14213562
A118: 110 | B118: 1.1 | C118: -6.666666667
A119: 111 | B119: 1.11 | C119: 14.14213562
A120: 112 | B120: 1.12 | C120: 26.66666667
A121: 113 | B121: 1.13 | C121: 14.14213562
A122: 114 | B122: 1.14 | C122: -6.666666667
A123: 115 | B123: 1.15 | C123: -14.14213562
A124: 116 | B124: 1.16 | C124: -13.33333333
A125: 117 | B125: 1.17 | C125: -14.14213562
A126: 118 | B126: 1.18 | C126: -6.666666667
A127: 119 | B127: 1.19 | C127: 14.14213562
A128: 120 | B128: 1.2 | C128: 26.66666667
A129: 121 | B129: 1.21 | C129: 14.14213562
A130: 122 | B130: 1.22 | C130: -6.666666667
A131: 123 | B131: 1.23 | C131: -14.14213562
A132: 124 | B132: 1.24 | C132: -13.33333333
A133: 125 | B133: 1.25 | C133: -14.14213562
A134: 126 | B134: 1.26 | C134: -6.666666667
A135: 127 | B135: 1.27 | C135: 14.14213562
A136: 128 | B136: 1.28 | C136: =ampl*COS(2*PI()*f*B136)+ampl/3*COS(2*PI()*2*f*B136) -> 26.66666667
A137: 129 | B137: =+B136+dt1_ -> 1.29 | C137: 14.14213562
A138: 130 | B138: 1.3 | C138: -6.666666667
A139: 131 | B139: 1.31 | C139: -14.14213562
A140: 132 | B140: 1.32 | C140: -13.33333333
A141: 133 | B141: 1.33 | C141: -14.14213562
A142: 134 | B142: 1.34 | C142: -6.666666667
A143: 135 | B143: 1.35 | C143: 14.14213562
A144: 136 | B144: 1.36 | C144: 26.66666667
A145: 137 | B145: 1.37 | C145: 14.14213562
A146: 138 | B146: 1.38 | C146: -6.666666667
A147: 139 | B147: 1.39 | C147: -14.14213562
A148: 140 | B148: 1.4 | C148: -13.33333333
A149: 141 | B149: 1.41 | C149: -14.14213562
A150: 142 | B150: 1.42 | C150: -6.666666667
A151: 143 | B151: 1.43 | C151: 14.14213562
A152: 144 | B152: 1.44 | C152: 26.66666667
A153: 145 | B153: 1.45 | C153: 14.14213562
A154: 146 | B154: 1.46 | C154: -6.666666667
A155: 147 | B155: 1.47 | C155: -14.14213562
A156: 148 | B156: 1.48 | C156: -13.33333333
A157: 149 | B157: 1.49 | C157: -14.14213562
A158: 150 | B158: 1.5 | C158: -6.666666667
A159: 151 | B159: 1.51 | C159: 14.14213562
A160: 152 | B160: 1.52 | C160: 26.66666667
A161: 153 | B161: 1.53 | C161: 14.14213562
A162: 154 | B162: 1.54 | C162: -6.666666667
A163: 155 | B163: 1.55 | C163: -14.14213562
A164: 156 | B164: 1.56 | C164: -13.33333333
A165: 157 | B165: 1.57 | C165: -14.14213562
A166: 158 | B166: 1.58 | C166: -6.666666667
A167: 159 | B167: 1.59 | C167: 14.14213562
A168: 160 | B168: 1.6 | C168: 26.66666667
A169: 161 | B169: 1.61 | C169: 14.14213562
A170: 162 | B170: 1.62 | C170: -6.666666667
A171: 163 | B171: 1.63 | C171: -14.14213562
A172: 164 | B172: 1.64 | C172: -13.33333333
A173: 165 | B173: 1.65 | C173: -14.14213562
A174: 166 | B174: 1.66 | C174: -6.666666667
A175: 167 | B175: 1.67 | C175: 14.14213562
A176: 168 | B176: 1.68 | C176: 26.66666667
A177: 169 | B177: 1.69 | C177: 14.14213562
A178: 170 | B178: 1.7 | C178: -6.666666667
A179: 171 | B179: 1.71 | C179: -14.14213562
A180: 172 | B180: 1.72 | C180: -13.33333333
A181: 173 | B181: 1.73 | C181: -14.14213562
A182: 174 | B182: 1.74 | C182: -6.666666667
A183: 175 | B183: 1.75 | C183: 14.14213562
A184: 176 | B184: 1.76 | C184: 26.66666667
A185: 177 | B185: 1.77 | C185: 14.14213562
A186: 178 | B186: 1.78 | C186: -6.666666667
A187: 179 | B187: 1.79 | C187: -14.14213562
A188: 180 | B188: 1.8 | C188: -13.33333333
A189: 181 | B189: 1.81 | C189: -14.14213562
A190: 182 | B190: 1.82 | C190: -6.666666667
A191: 183 | B191: 1.83 | C191: 14.14213562
A192: 184 | B192: 1.84 | C192: 26.66666667
A193: 185 | B193: 1.85 | C193: 14.14213562
A194: 186 | B194: 1.86 | C194: -6.666666667
A195: 187 | B195: 1.87 | C195: -14.14213562
A196: 188 | B196: 1.88 | C196: -13.33333333
A197: 189 | B197: 1.89 | C197: -14.14213562
A198: 190 | B198: 1.9 | C198: -6.666666667
A199: 191 | B199: 1.91 | C199: 14.14213562
A200: 192 | B200: 1.92 | C200: =ampl*COS(2*PI()*f*B200)+ampl/3*COS(2*PI()*2*f*B200) -> 26.66666667
A201: 193 | B201: =+B200+dt1_ -> 1.93 | C201: 14.14213562
A202: 194 | B202: 1.94 | C202: -6.666666667
... 317 more rows
